bitfinex/quotes_SOLUSD_20220113
["timestamp","ask_amount","ask_price","bid_price","bid_amount"]
[1642063081567,22.0419,152.4,152.27,2.625]
[1642063081767,22.0419,152.4,152.27,2.875]
[1642063082771,22.0419,152.4,152.27,2.625]
[1642063083270,22.0419,152.4,152.27,12.4735]
[1642063083503,46.9298,152.4,152.27,12.4735]
[1642063087213,22.0419,152.4,152.28,66.12]
[1642063087412,12.5419,152.4,152.3,9.8461]
[1642063087614,12.5419,152.4,152.3,75.9661]
[1642063087813,2.695,152.4,152.3,75.9661]
[1642063088016,2.695,152.4,152.3,9.8461]
[1642063088514,2.945,152.4,152.3,9.8461]
[1642063089513,2.945,152.4,152.3,75.9661]
[1642063089514,2.695,152.4,152.3,75.9661]
[1642063090716,2.695,152.4,152.3,78.5911]
[1642063090914,2.945,152.4,152.3,78.8411]
[1642063091117,2.945,152.4,152.3,78.5911]
[1642063092018,12.7912,152.4,152.3,12.4711]
[1642063092215,12.7912,152.4,152.3,2.625]
[1642063092717,19.4862,152.4,152.28,6.54704607]
[1642063092918,19.4862,152.4,152.28,9.17204607]
[1642063093517,43.3391,152.4,152.28,9.17204607]
[1642063094318,7.23894957,152.39,152.28,9.17204607]
[1642063094519,9.8488,152.36,152.28,9.17204607]
[1642063094943,10.0988,152.36,152.28,9.17204607]
[1642063095547,0.25,152.36,152.28,9.17204607]
[1642063095947,13.58535623,152.38,152.28,10.2347762]
[1642063096544,10.098,152.38,152.28,10.2347762]
[1642063096744,37.34455251,152.38,152.28,10.2347762]
[1642063097246,37.34455251,152.38,152.28,20.0827762]
[1642063097848,37.34455251,152.38,152.28,9.17204607]
[1642063099450,40.83190874,152.38,152.28,9.17204607]
[1642063100054,40.83190874,152.38,152.28,2.625]
[1642063103555,40.83190874,152.38,152.28,12.4728]
[1642063103753,40.83190874,152.38,152.28,9.8478]
[1642063105656,2.625,152.37,152.25,2.625]
[1642063105855,9.8494,152.36,152.24,30.90569721]
[1642063106056,10.0994,152.36,152.24,31.16569721]
[1642063106354,10.0994,152.36,152.24,30.90569721]
[1642063106355,0.25,152.36,152.24,30.90569721]
[1642063106554,0.25,152.36,152.24,31.16569721]
[1642063106753,0.25,152.36,152.24,30.90569721]
[1642063107156,10.0988,152.36,152.26,9.8492]
[1642063107354,2.626,152.35,152.26,9.8492]
[1642063107554,2.876,152.35,152.26,9.8492]
[1642063107756,2.626,152.35,152.26,11.16193013]
[1642063107954,81.79705623,152.37,152.27,12.126]
[1642063108153,81.79705623,152.37,152.27,19.06]
[1642063108354,78.3097,152.37,152.28,1.13273013]
[1642063108555,78.3097,152.37,152.29,2.625]
[1642063108758,78.3097,152.37,152.32,9.8449]
[1642063108958,3.48735623,152.38,152.29,1.06273013]
[1642063109157,3.48735623,152.38,152.28,48.3161]
[1642063109456,100.408,152.39,152.28,15.5]
[1642063109656,2.625,152.38,152.3,9.8461]
[1642063109858,2.625,152.38,152.28,9.5]
[1642063110459,2.875,152.38,152.28,9.5]
[1642063111158,12.7224,152.38,152.28,19.3474]
[1642063112859,12.7224,152.38,152.28,20.41013013]
[1642063113464,12.7224,152.38,152.28,19.3474]
[1642063115164,12.7224,152.38,152.28,20.41013013]
[1642063115363,2.875,152.38,152.28,86.53013013]
[1642063115965,2.625,152.38,152.28,86.78013013]
[1642063116364,103.89535623,152.39,152.29,2.625]
[1642063116365,106.52035623,152.39,152.29,2.625]
[1642063116567,103.033,152.39,152.3,9.8466]
[1642063116765,103.033,152.39,152.3,10.90933013]
[1642063117668,103.283,152.39,152.3,10.90933013]
[1642063117866,113.1297,152.39,152.3,10.90933013]
[1642063118067,110.5047,152.39,152.3,10.90933013]
[1642063118467,110.2547,152.39,152.3,10.90933013]
[1642063120168,100.408,152.39,152.3,10.90933013]
[1642063120972,100.658,152.39,152.3,10.90933013]
[1642063121168,110.5047,152.39,152.29,12.4723]
[1642063121370,2.625,152.38,152.29,9.8473]
[1642063121569,2.875,152.38,152.29,9.8473]
[1642063122170,12.7225,152.38,152.29,9.8473]
[1642063122770,12.7225,152.38,152.28,9.5]
[1642063124173,12.7225,152.38,152.28,19.3478]
[1642063125675,0.07,152.37,152.28,9.5]
[1642063125875,9.8494,152.35,152.27,92.9]
[1642063126176,10.0994,152.35,152.27,92.9]
[1642063126376,2.626,152.34,152.27,92.9]
[1642063126576,2.876,152.34,152.27,92.9]
[1642063127177,0.25,152.34,152.27,92.9]
[1642063127977,22.08300702,152.36,152.27,92.9]
[1642063128176,2.626,152.35,152.27,92.9]
[1642063129176,12.4752,152.35,152.27,92.9]
[1642063129780,12.5452,152.35,152.27,92.9]
[1642063129982,12.7952,152.35,152.27,92.9]
[1642063130582,12.5452,152.35,152.27,92.9]
[1642063131785,12.7952,152.35,152.27,92.9]
[1642063132387,2.946,152.35,152.27,92.9]
[1642063132590,0.32,152.35,152.27,92.9]
[1642063133088,0.07,152.35,152.27,102.7485]
[1642063135189,9.9192,152.35,152.27,102.7485]
[1642063135390,10.1692,152.35,152.27,102.7485]
[1642063136217,10.1692,152.35,152.27,92.9]
[1642063136814,10.1692,152.35,152.27,93.96273013]
[1642063137217,10.1692,152.35,152.27,92.9]
[1642063137616,10.1692,152.35,152.27,98.9]
[1642063137815,0.32,152.35,152.27,108.7486]
[1642063138016,0.07,152.35,152.27,108.7486]
[1642063139217,0.07,152.35,152.27,102.7486]
[1642063139417,0.07,152.35,152.27,108.7486]
[1642063140118,0.07,152.35,152.27,102.7486]
[1642063140517,0.07,152.35,152.27,108.7486]
[1642063141525,0.07,152.35,152.27,102.7486]
[1642063142527,0.07,152.35,152.27,103.81133013]
[1642063143424,1.94996167,152.35,152.27,103.81133013]
[1642063143825,2.19996167,152.35,152.27,102.7486]
[1642063144025,12.04936167,152.35,152.27,92.9]
[1642063144827,2.626,152.34,152.27,92.9]
[1642063145031,14.60616167,152.34,152.27,92.9]
[1642063145531,11.98016167,152.34,152.27,92.9]
[1642063145931,2.12996167,152.34,152.27,92.9]
[1642063147465,1.87996167,152.34,152.27,92.9]
[1642063147669,1.87996167,152.33,152.27,92.9]
[1642063148466,1.87996167,152.34,152.27,92.9]
[1642063149066,11.97996167,152.34,152.27,92.9]
[1642063149866,1.87996167,152.33,152.27,92.9]
[1642063150070,20.71788657,152.32,152.27,92.9]
[1642063150269,20.78788657,152.32,152.27,92.9]
[1642063150467,2.626,152.31,152.23,2.626]
[1642063150666,0.07,152.3,152.23,2.626]
[1642063150869,2.626,152.29,152.23,2.626]
[1642063151068,0.07,152.28,152.23,2.626]
[1642063151470,12.4804,152.27,152.23,2.626]
[1642063151668,26.50543169,152.26,152.23,2.626]
[1642063151869,2.626,152.25,152.23,2.626]
[1642063152070,2.876,152.25,152.23,2.626]
[1642063153270,12.7322,152.25,152.23,2.626]
[1642063155377,12.7322,152.25,152.23,0.006]
[1642063155577,72.9551,152.24,152.23,0.006]
[1642063155774,82.8127,152.24,152.23,0.006]
[1642063155981,83.0627,152.24,152.14,9.5]
[1642063156177,35.0627,152.24,152.14,9.5]
[1642063156376,0.07,152.23,152.13,94.67610726]
[1642063156578,25.2051,152.24,152.13,94.67610726]
[1642063156777,25.2751,152.24,152.13,94.67610726]
[1642063156977,25.0251,152.24,152.13,94.67610726]
[1642063157179,25.0251,152.24,152.13,92.9]
[1642063158278,9.8574,152.23,152.13,92.9]
[1642063158478,10.1074,152.23,152.13,92.9]
[1642063159279,9.8574,152.23,152.13,92.9]
[1642063159479,9.8574,152.23,152.13,95.778]
[1642063159978,9.8574,152.23,152.13,95.528]
[1642063160478,10.1774,152.23,152.13,95.528]
[1642063161681,10.1774,152.23,152.13,92.9]
[1642063161881,0.07,152.21,152.13,92.9]
[1642063162081,9.8588,152.2,152.13,92.9]
[1642063162280,2.628,152.22,152.13,92.9]
[1642063162480,0.25,152.2,152.13,92.9]
[1642063162985,2.628,152.23,152.13,92.9]
[1642063163382,27.5831,152.24,152.13,92.9]
[1642063163785,27.5831,152.24,152.13,93.15]
[1642063164184,9.8568,152.23,152.13,103.0076]
[1642063164384,9.8568,152.23,152.14,2.628]
[1642063164586,9.8568,152.23,152.13,105.3856]
[1642063165488,9.8568,152.23,152.13,105.6356]
[1642063165986,10.1068,152.23,152.13,105.6356]
[1642063167090,10.1068,152.23,152.13,105.3856]
[1642063169292,10.1068,152.23,152.13,105.6356]
[1642063171497,12.7348,152.23,152.13,105.3856]
[1642063171897,12.7348,152.23,152.13,12.4856]
[1642063172097,12.8048,152.23,152.13,12.4856]
[1642063172498,18.11773324,152.21,152.13,9.8576]
[1642063172698,2.628,152.2,152.13,9.8576]
[1642063172899,27.97583324,152.21,152.13,9.8576]
[1642063172900,30.85383324,152.21,152.13,9.8576]
[1642063173099,0.25,152.2,152.13,9.8576]
[1642063173301,0.25,152.2,152.12,9.5]
[1642063174023,6.059,152.2,152.12,9.5]
[1642063174324,15.9178,152.2,152.12,9.5]
[1642063174523,2.628,152.19,152.12,9.5]
[1642063174923,2.878,152.19,152.12,9.5]
[1642063176326,12.7376,152.19,152.1,73.4725]
[1642063176526,12.7376,152.19,152.09,2.628]
[1642063177128,23.922,152.18,152.09,2.628]
[1642063177330,9.8619,152.15,152.08,26.21250726]
[1642063177528,10.1119,152.15,152.07,132.11887861]
[1642063177826,2.629,152.17,152.07,132.11887861]
[1642063178028,23.852,152.18,152.07,134.74787861]
[1642063178227,2.629,152.17,152.07,134.74787861]
[1642063179028,2.879,152.17,152.07,134.74787861]
[1642063179228,12.7401,152.17,152.07,134.74787861]
[1642063179428,12.7401,152.17,152.07,136.52398587]
[1642063179629,12.7401,152.17,152.07,133.89498587]
[1642063180230,12.4901,152.17,152.07,133.89498587]
[1642063180429,9.8611,152.17,152.07,134.14498587]
[1642063180828,9.8611,152.17,152.07,133.89498587]
[1642063181433,12.4901,152.17,152.07,133.89498587]
[1642063181635,12.7401,152.17,152.07,133.89498587]
[1642063182239,12.7401,152.17,152.08,1.77610726]
[1642063182437,10.1111,152.17,152.09,9.8602]
[1642063182637,10.1111,152.17,152.08,1.77610726]
[1642063184241,10.1111,152.17,152.08,11.63690726]
[1642063184437,10.1111,152.17,152.08,11.88690726]
[1642063184638,10.1111,152.17,152.08,11.63690726]
[1642063186042,0.25,152.17,152.08,11.63690726]
[1642063186439,24.102,152.18,152.08,11.63690726]
[1642063186640,24.102,152.18,152.08,14.26590726]
[1642063187039,24.102,152.18,152.09,1.77610726]
[1642063187844,24.102,152.18,152.08,11.63690726]
[1642063188041,2.629,152.17,152.08,11.63690726]
[1642063188242,12.4896,152.17,152.08,11.63690726]
[1642063188440,12.7396,152.17,152.08,11.63690726]
[1642063189142,12.7396,152.17,152.08,1.77610726]
[1642063190346,12.7396,152.17,152.07,104.53750726]
[1642063190550,12.7396,152.17,152.07,94.67610726]
[1642063192347,12.7396,152.17,152.08,9.8609]
[1642063194547,2.879,152.17,152.08,9.8609]
[1642063195448,2.879,152.17,152.08,11.63700726]
[1642063195652,12.7395,152.17,152.08,1.77610726]
[1642063196849,12.7395,152.17,152.07,97.30510726]
[1642063197049,12.7395,152.17,152.07,107.16670726]
[1642063197951,12.7395,152.17,152.08,1.77610726]
[1642063198650,12.8095,152.17,152.08,1.77610726]
[1642063199681,12.8095,152.17,152.07,104.53770726]
[1642063199881,12.7395,152.17,152.07,104.53770726]
[1642063200084,12.7395,152.17,152.07,105.60326526]
[1642063200481,12.7395,152.17,152.08,1.77610726]
[1642063201983,12.4895,152.17,152.08,1.77610726]
[1642063203385,12.7395,152.17,152.09,1.77610726]
[1642063204284,12.4895,152.17,152.09,1.77610726]
[1642063204485,12.5595,152.17,152.09,1.77610726]
[1642063204685,12.4895,152.17,152.09,1.77610726]
[1642063204885,12.5595,152.17,152.09,1.77610726]
[1642063205685,12.8095,152.17,152.09,1.77610726]
[1642063205885,12.8095,152.17,152.08,1.77610726]
[1642063206287,78.9295,152.17,152.08,1.77610726]
[1642063206690,0.07,152.15,152.08,1.77610726]
[1642063206886,9.865,152.12,152.08,1.77610726]
[1642063207088,10.115,152.12,152.08,1.77610726]
[1642063207289,12.744,152.12,152.08,1.77610726]
[1642063207689,12.744,152.12,152.07,92.9]
[1642063208992,10.115,152.12,152.07,92.9]
[1642063210597,9.5,152.11,152.05,1.77610726]
[1642063210806,12.13,152.11,152.05,1.77610726]
[1642063210995,9.8674,152.08,152.05,1.77610726]
[1642063211196,18.11773324,152.07,152.05,1.77610726]
[1642063211394,2.63,152.07,152.05,1.77610726]
[1642063211596,2.88,152.07,152.05,1.77610726]
[1642063211799,0.25,152.07,152.05,1.77610726]
[1642063212600,35.7736,152.09,152.05,1.77610726]
[1642063212800,35.7736,152.09,152.03,1.77610726]
[1642063213301,9.8683,152.06,152.03,1.77610726]
[1642063213600,10.1183,152.06,152.03,1.77610726]
[1642063213800,2.63,152.05,152.03,1.77610726]
[1642063214000,2.88,152.05,152.01,1.77610726]
[1642063214403,0.25,152.05,152.01,1.77610726]
[1642063215008,9.8703,152.04,151.98,1.77610726]
[1642063215405,10.1203,152.04,151.98,1.77610726]
[1642063215906,2.63,152.03,151.98,1.77610726]
[1642063216107,2.88,152.03,151.98,1.77610726]
[1642063216507,0.25,152.03,151.98,1.77610726]
[1642063216707,0.25,152.03,151.97,28.07650807]
[1642063217309,9.871,152.01,151.97,28.07650807]
[1642063217509,10.121,152.01,151.97,28.07650807]
[1642063217909,10.121,152.01,151.95,1.77610726]
[1642063218538,10.121,152.01,151.94,94.67610726]
[1642063218940,2.632,152.0,151.94,1.77610726]
[1642063219141,9.8731,151.98,151.94,1.77610726]
[1642063219545,10.1231,151.98,151.93,1.77610726]
[1642063220541,10.1231,151.98,151.9,1.77610726]
[1642063220943,10.1231,151.98,151.91,25.80399374]
[1642063222445,9.872,152.0,151.91,26.86955174]
[1642063222648,25.4835,152.02,151.91,26.86955174]
[1642063222847,0.25,152.0,151.92,2.632]
[1642063223047,0.25,152.0,151.93,9.8704]
[1642063223247,0.25,152.0,151.93,10.935958]
[1642063223450,0.25,152.0,151.93,1.065558]
[1642063224047,12.7531,152.01,151.93,1.065558]
[1642063224248,10.1211,152.01,151.93,1.065558]
[1642063225849,1.87996167,152.15,152.01,80.0]
[1642063226050,1.87996167,152.15,152.07,0.31829361]
[1642063226251,51.462,152.2,152.11,32.0]
[1642063226451,1.69845194,152.14,152.12,12.129]
[1642063226651,1.69845194,152.14,152.13,3.03219997]
[1642063226851,5.194e-05,152.14,152.13,8.69339993]
[1642063227454,5.194e-05,152.14,152.13,2.629]
[1642063227653,2.629,152.18,152.13,2.629]
[1642063227852,2.699,152.18,152.08,9.5]
[1642063228653,35.9856,152.18,152.08,9.5]
[1642063229052,36.2356,152.18,152.08,9.5]
[1642063230060,26.3723,152.18,152.08,9.5]
[1642063238368,36.2355,152.18,152.08,9.5]
[1642063238568,9.5,152.17,152.03,18.38377371]
[1642063238772,0.07,152.15,152.02,174.811]
[1642063238969,12.13,152.14,152.02,165.311]
[1642063239172,0.07,152.12,152.0,2.629]
[1642063239371,2.63,152.11,151.99,78.2487]
[1642063239573,0.07,152.1,151.97,119.3063]
[1642063239773,2.63,152.09,151.98,9.867]
[1642063239977,2.88,152.09,151.99,2.63]
[1642063240176,24.14192692,152.08,151.99,2.63]
[1642063240675,24.39192692,152.08,151.99,2.63]
[1642063240878,24.39192692,152.08,151.99,12.4967]
[1642063241078,24.39192692,152.08,151.99,12.7467]
[1642063241279,24.39192692,152.08,151.99,12.4967]
[1642063241480,24.39192692,152.08,151.99,12.7467]
[1642063242079,24.39192692,152.08,151.99,12.4967]
[1642063242280,24.39192692,152.08,151.99,2.63]
[1642063242482,2.63,152.07,151.97,95.53]
[1642063242679,105.17052692,152.08,151.97,95.53]
[1642063242883,0.25,152.07,151.97,95.53]
[1642063243081,105.17052692,152.08,151.97,95.53]
[1642063243281,105.17052692,152.08,151.98,23.95217809]
[1642063243480,9.8688,152.07,151.98,24.20217809]
[1642063243886,0.25,152.07,151.98,24.20217809]
[1642063245017,105.17052692,152.08,151.98,24.20217809]
[1642063245216,115.03812692,152.08,151.98,24.20217809]
[1642063247019,90.8962,152.08,151.98,24.20217809]
[1642063247318,36.5376,152.1,151.99,12.13]
[1642063247522,33.9076,152.1,151.99,12.38]
[1642063247820,33.9076,152.1,151.99,26.77252501]
[1642063248021,26.50336933,152.09,151.99,25.70696701]
[1642063248221,26.50336933,152.09,151.99,25.45696701]
[1642063248653,26.75336933,152.09,151.99,25.45696701]
[1642063249153,26.75336933,152.09,152.0,9.8661]
[1642063249353,26.75336933,152.09,152.01,12.13]
[1642063249553,26.75336933,152.09,152.01,9.5]
[1642063251653,26.50336933,152.09,152.01,9.5]
[1642063252356,26.50336933,152.09,152.01,9.75]
[1642063252656,26.50336933,152.09,152.01,9.5]
[1642063253555,26.75336933,152.09,152.01,9.5]
[1642063254357,2.63,152.08,152.01,9.5]
[1642063254556,2.88,152.08,152.01,9.5]
[1642063255455,2.63,152.08,152.01,9.5]
[1642063255859,39.00046933,152.09,152.01,9.5]
[1642063256463,29.13336933,152.09,152.01,9.5]
[1642063256658,26.50336933,152.09,152.01,10.565558]
[1642063256858,26.75336933,152.09,152.01,10.565558]
[1642063257660,26.75336933,152.09,152.01,9.5]
[1642063260266,2.63,152.1,152.01,19.3653]
[1642063260469,2.63,152.13,152.02,2.63]
[1642063260766,2.63,152.15,152.03,9.5]
[1642063260966,25.4945,152.17,152.04,2.63]
[1642063261165,2.629,152.17,152.05,9.5]
[1642063261367,25.98934472,152.17,152.06,31.17053938]
[1642063261565,25.98934472,152.17,152.07,9.5]
[1642063261766,25.98934472,152.17,152.07,22.82696701]
[1642063261965,25.98934472,152.17,152.07,15.75]
[1642063262166,25.98934472,152.17,152.08,13.32696701]
[1642063262367,25.98934472,152.17,152.09,9.5]
[1642063262565,25.98934472,152.17,152.1,9.8595]
[1642063262766,25.98934472,152.17,152.1,19.3595]
[1642063262967,25.98934472,152.17,152.1,19.6095]
[1642063263566,26.23934472,152.17,152.1,19.6095]
[1642063263766,26.23934472,152.17,152.1,22.2385]
[1642063263969,26.23934472,152.17,152.1,21.9885]
[1642063264868,26.23934472,152.17,152.1,19.3595]
[1642063265072,0.25,152.17,152.1,19.3595]
[1642063265270,0.25,152.17,152.1,19.6095]
[1642063265467,37.5355,152.21,152.1,19.6095]
[1642063265968,37.5355,152.21,152.1,19.3595]
[1642063266168,27.20693206,152.2,152.1,19.3595]
[1642063266368,2.628,152.19,152.1,19.3595]
[1642063266569,2.878,152.19,152.1,19.3595]
[1642063268670,2.878,152.19,152.1,98.80646701]
[1642063268871,2.878,152.19,152.1,99.05646701]
[1642063269773,0.25,152.19,152.1,101.68546701]
[1642063269972,2.879,152.2,152.1,109.01102501]
[1642063270173,0.25,152.2,152.1,109.01102501]
[1642063270374,0.25,152.2,152.1,103.01102501]
[1642063270574,2.628,152.21,152.1,109.01102501]
[1642063270777,77.1976,152.22,152.1,109.01102501]
[1642063270974,23.79005423,152.21,152.1,109.01102501]
[1642063271576,77.1976,152.22,152.1,109.01102501]
[1642063271774,77.1976,152.22,152.1,103.01102501]
[1642063271974,77.4476,152.22,152.1,109.01102501]
[1642063272476,77.4476,152.22,152.1,103.01102501]
[1642063272677,103.44906701,152.22,152.1,109.01102501]
[1642063272877,103.44906701,152.22,152.1,103.01102501]
[1642063274175,106.07706701,152.22,152.1,103.01102501]
[1642063274376,106.07706701,152.22,152.1,109.01102501]
[1642063274777,106.07706701,152.22,152.1,103.01102501]
[1642063274978,106.07706701,152.22,152.1,109.01102501]
[1642063275176,106.07706701,152.22,152.1,95.424058]
[1642063275376,106.07706701,152.22,152.1,89.424058]
[1642063275982,106.07706701,152.22,152.1,23.054058]
[1642063276178,0.07,152.21,152.08,9.8605]
[1642063276380,9.8607,152.19,152.08,9.8605]
[1642063276578,2.629,152.18,152.08,9.8605]
[1642063276980,23.72703632,152.17,152.08,9.8605]
[1642063277381,23.97703632,152.17,152.08,10.1105]
[1642063277783,48.42173632,152.17,152.08,10.1105]
[1642063277981,48.42173632,152.17,152.08,9.8605]
[1642063278183,2.629,152.16,152.08,9.8605]
[1642063278582,2.879,152.16,152.08,9.8605]
[1642063279983,2.879,152.16,152.07,9.5]
[1642063281191,2.879,152.16,152.07,19.3614]
[1642063281490,2.879,152.16,152.07,15.3614]
[1642063283727,27.75910305,152.15,152.07,15.3614]
[1642063284127,28.00910305,152.15,152.07,15.3614]
[1642063284727,28.00910305,152.15,152.07,5.5]
[1642063285328,52.39110305,152.15,152.07,5.5]
[1642063286132,2.629,152.14,152.07,5.5]
[1642063286527,2.879,152.14,152.08,30.709654]
[1642063286727,0.25,152.14,152.08,30.709654]
[1642063287630,24.632,152.15,152.08,31.77256476]
[1642063288029,24.632,152.15,152.08,33.338654]
[1642063288327,24.382,152.15,152.08,33.338654]
[1642063289130,24.382,152.15,152.08,30.709654]
[1642063289333,24.382,152.15,152.07,15.3615]
[1642063289530,24.632,152.15,152.07,15.6115]
[1642063290537,31.5033688,152.14,152.07,15.6115]
[1642063291036,31.7533688,152.14,152.07,5.5]
[1642063293741,31.5033688,152.14,152.07,5.5]
[1642063295039,31.7533688,152.14,152.07,5.5]
[1642063298546,39.9533688,152.14,152.07,5.5]
[1642063298744,2.629,152.13,152.07,5.5]
[1642063298949,2.879,152.13,152.07,5.5]
[1642063299144,2.879,152.13,152.02,92.9]
[1642063299744,0.07,152.12,152.02,92.9]
[1642063299945,23.3169747,152.1,152.02,92.9]
[1642063300345,23.5669747,152.1,152.02,92.9]
[1642063301279,33.4336747,152.1,152.02,92.9]
[1642063302176,33.1836747,152.1,152.02,92.9]
[1642063303578,33.4336747,152.1,152.02,92.9]
[1642063304379,33.4336747,152.1,152.03,1.06291076]
[1642063304779,33.4336747,152.1,152.02,92.9]
[1642063304980,33.4336747,152.1,152.02,95.53]
[1642063305980,2.63,152.09,152.02,92.9]
[1642063306181,12.4975,152.09,152.02,92.9]
[1642063306379,12.7475,152.09,152.02,92.9]
[1642063309988,2.88,152.09,152.02,92.9]
[1642063310187,2.88,152.09,152.02,93.95498878]
[1642063310387,2.88,152.09,152.02,92.9]
[1642063310788,0.25,152.09,152.02,92.9]
[1642063310989,50.9139747,152.1,152.02,92.9]
[1642063311190,60.7804747,152.1,152.02,92.9]
[1642063311390,60.8504747,152.1,152.02,92.9]
[1642063311793,60.6004747,152.1,152.02,92.9]
[1642063312390,57.9704747,152.1,152.02,92.9]
[1642063312592,48.1039747,152.1,152.02,92.9]
[1642063314200,48.1039747,152.1,152.02,93.15]
[1642063314401,48.1039747,152.1,152.03,2.63]
[1642063314595,48.1039747,152.1,152.02,95.78]
[1642063315397,48.3539747,152.1,152.02,95.53]
[1642063315597,48.3539747,152.1,152.02,95.78]
[1642063315796,23.6369747,152.1,152.02,95.78]
[1642063316001,23.3869747,152.1,152.02,105.03]
[1642063316797,23.3869747,152.1,152.02,102.4]
[1642063317000,0.07,152.1,152.03,28.68646175]
[1642063317399,0.07,152.1,152.02,102.4]
[1642063318501,29.49149479,152.1,152.02,102.4]
[1642063318903,2.63,152.09,152.02,102.4]
[1642063319105,0.25,152.09,152.02,102.4]
[1642063320203,2.63,152.09,152.02,102.4]
[1642063320401,12.4972,152.09,152.02,122.4]
[1642063320604,12.7472,152.09,152.02,122.4]
[1642063322304,10.1172,152.09,152.02,122.4]
[1642063322704,10.1172,152.09,152.02,112.9]
[1642063325409,10.1172,152.09,152.02,137.58550833]
[1642063326910,2.63,152.08,152.02,137.58550833]
[1642063327110,2.88,152.08,152.02,112.9]
[1642063327514,2.88,152.08,152.02,20.0]
[1642063328312,25.00673463,152.07,152.02,20.0]
[1642063328520,25.25673463,152.07,152.02,20.0]
[1642063333017,2.63,152.06,152.02,20.0]
[1642063333418,2.88,152.06,152.02,20.0]
[1642063334219,0.25,152.06,152.02,20.0]
[1642063334619,35.12513463,152.07,152.02,20.0]
[1642063334820,2.63,152.05,152.02,20.0]
[1642063335023,30.64984887,152.04,152.02,20.0]
[1642063335420,30.89984887,152.04,151.95,92.9]
[1642063335620,22.772,152.03,151.95,92.9]
[1642063336119,23.022,152.03,151.95,92.9]
[1642063337220,9.8717,152.02,151.95,92.9]
[1642063337422,25.652,152.03,151.95,92.9]
[1642063337623,0.25,152.02,151.95,92.9]
[1642063337920,25.652,152.03,151.95,92.9]
[1642063338622,35.5229,152.03,151.93,2.63]
[1642063338821,66.12,152.02,151.93,2.63]
[1642063339022,2.702,152.01,151.93,2.63]
[1642063339224,25.252,152.01,151.93,2.63]
[1642063339422,25.502,152.01,151.93,2.63]
[1642063339623,25.74978068,152.0,151.93,2.63]
[1642063339824,9.874,151.99,151.93,2.63]
[1642063340023,10.124,151.99,151.93,2.63]
[1642063341025,10.124,151.99,151.9,29.45046701]
[1642063341225,23.676,151.98,151.9,29.45046701]
[1642063341524,23.926,151.98,151.9,29.45046701]
[1642063342125,23.676,151.98,151.9,29.45046701]
[1642063342659,23.676,151.98,151.9,29.70046701]
[1642063343663,25.74978068,152.0,151.91,2.632]
[1642063344072,25.74978068,152.0,151.91,12.7539]
[1642063344268,25.99978068,152.0,151.91,12.7539]
[1642063347072,25.74978068,152.0,151.91,12.7539]
[1642063347470,25.74978068,152.0,151.91,12.5039]
[1642063348371,25.74978068,152.0,151.91,2.632]
[1642063348871,25.99978068,152.0,151.91,2.632]
[1642063349072,28.63178068,152.0,151.91,2.632]
[1642063350274,28.63178068,152.0,151.91,9.8717]
[1642063350672,23.0582,151.99,151.91,9.8717]
[1642063351173,23.3082,151.99,151.9,2.632]
[1642063351376,2.632,151.98,151.89,94.77584898]
[1642063351572,2.882,151.98,151.89,104.27584898]
[1642063352175,25.98381034,151.97,151.89,102.4]
[1642063352577,26.23381034,151.97,151.89,102.4]